fUST/lending_fUST_20260211
["ID","MTS","AMOUNT","RATE_DAILY","PERIOD"]
[405092887,1770791442791,-166.736508,0.00038356,120]
[405092888,1770791442800,-151.0,0.00038356,120]
[405092889,1770791442809,-151.0,0.00038356,120]
[405092890,1770791442820,-151.0,0.00038356,120]
[405092891,1770791442829,-151.0,0.00038356,120]
[405092892,1770791442838,-151.0,0.00038356,120]
[405092893,1770791442848,-151.0,0.00038356,120]
[405092894,1770791442857,-151.0,0.00038356,120]
[405092895,1770791442866,-151.0,0.00038356,120]
[405092896,1770791442876,-151.0,0.00038356,120]
[405092897,1770791442885,-151.0,0.00038356,120]
[405092898,1770791442895,-151.0,0.00038356,120]
[405092899,1770791442906,-151.0,0.00038356,120]
[405092900,1770791442916,-151.0,0.00038356,120]
[405092901,1770791442926,-174.940047,0.00038356,120]
[405092902,1770791442936,-151.0,0.00038356,120]
[405092903,1770791442946,-151.0,0.00038356,120]
[405092904,1770791442956,-151.0,0.00038356,120]
[405092905,1770791442965,-151.0,0.00038356,120]
[405092906,1770791442975,-151.0,0.00038356,120]
[405092907,1770791442984,-151.0,0.00038356,120]
[405092908,1770791442994,-205.817061,0.00038356,120]
[405092909,1770791443003,-153.93492,0.00038356,120]
[405092910,1770791443012,-152.255318,0.00038356,120]
[405092911,1770791443021,-151.0,0.00038356,120]
[405092912,1770791443031,-151.0,0.00038356,120]
[405092913,1770791443040,-258.532896,0.00038356,120]
[405092914,1770791443050,-151.0,0.00038356,120]
[405092915,1770791443060,-258.532896,0.00038356,120]
[405092916,1770791443070,-151.0,0.00038356,120]
[405092917,1770791443080,-258.532896,0.00038356,120]
[405092918,1770791443090,-151.0,0.00038356,7]
[405092919,1770791443099,-151.0,0.00038356,120]
[405092920,1770791443109,-258.532896,0.00038356,120]
[405092921,1770791443119,-151.0,0.00038356,7]
[405092922,1770791443129,-151.0,0.00038356,120]
[405092923,1770791443139,-258.532896,0.00038356,120]
[405092924,1770791443150,-151.0,0.00038356,7]
[405092925,1770791443160,-258.532896,0.00038356,120]
[405092926,1770791443170,-151.0,0.00038356,120]
[405092927,1770791443180,-151.0,0.00038356,7]
[405092928,1770791443248,-151.0,0.00038356,120]
[405092929,1770791443265,-179.970456,0.00038356,7]
[405092930,1770791443275,-258.532896,0.00038356,120]
[405092931,1770791443285,-151.0,0.00038356,120]
[405092932,1770791443294,-258.532896,0.00038356,120]
[405092933,1770791443304,-151.0,0.00038356,120]
[405092934,1770791443313,-258.532896,0.00038356,120]
[405092935,1770791443323,-151.0,0.00038356,120]
[405092936,1770791443333,-258.532896,0.00038356,120]
[405092937,1770791443344,-151.0,0.00038356,120]
[405092938,1770791443354,-258.532896,0.00038356,120]
[405092939,1770791443363,-151.0,0.00038356,120]
[405092940,1770791443373,-258.532896,0.00038356,120]
[405092941,1770791443382,-154.921385,0.00038356,120]
[405092942,1770791443392,-258.532896,0.00038356,120]
[405092943,1770791443402,-258.532896,0.00038356,120]
[405092944,1770791443412,-258.532896,0.00038356,120]
[405092945,1770791443421,-258.532896,0.00038356,120]
[405092946,1770791443431,-258.532896,0.00038356,120]
[405092947,1770791443441,-258.532896,0.00038356,120]
[405092948,1770791443450,-258.532896,0.00038356,120]
[405092949,1770791443459,-258.532901,0.00038356,120]
[405092950,1770791443469,-151.0,0.00038356,120]
[405092951,1770791443478,-151.0,0.00038356,120]
[405092952,1770791443488,-151.0,0.00038356,120]
[405092953,1770791443498,-155.317381,0.00038356,120]
[405092956,1770791443514,-151.0,0.00038356,120]
[405092957,1770791443524,-151.0,0.00038356,120]
[405092958,1770791443533,-151.0,0.00038356,120]
[405092959,1770791443543,-151.0,0.00038356,120]
[405092960,1770791443552,-151.0,0.00038356,120]
[405092961,1770791443562,-151.0,0.00038356,120]
[405092962,1770791443572,-151.0,0.00038356,120]
[405092963,1770791443584,-151.0,0.00038356,120]
[405092964,1770791443594,-151.0,0.00038356,120]
[405092965,1770791443604,-248.234051,0.00038356,60]
[405092966,1770791443614,-151.0,0.00038356,120]
[405092967,1770791443624,-248.234051,0.00038356,60]
[405092968,1770791443634,-151.0,0.00038356,120]
[405092969,1770791443646,-248.234051,0.00038356,60]
[405092970,1770791443656,-241.336771,0.00038356,120]
[405092971,1770791443665,-248.234051,0.00038356,60]
[405092972,1770791443675,-248.234051,0.00038356,60]
[405092973,1770791443685,-248.234051,0.00038356,60]
[405092974,1770791443695,-248.234051,0.00038356,60]
[405092975,1770791443706,-248.234051,0.00038356,60]
[405092976,1770791443717,-248.234051,0.00038356,60]
[405092977,1770791443727,-248.234051,0.00038356,60]
[405092978,1770791443736,-248.234051,0.00038356,60]
[405092979,1770791443746,-248.234051,0.00038356,60]
[405092980,1770791443755,-248.234051,0.00038356,60]
[405092981,1770791443765,-248.234051,0.00038356,60]
[405092982,1770791443774,-248.234051,0.00038356,60]
[405092983,1770791443783,-248.234051,0.00038356,60]
[405092984,1770791443793,-248.234051,0.00038356,60]
[405092985,1770791443802,-248.234051,0.00038356,60]
[405092986,1770791443811,-248.234051,0.00038356,60]
[405092987,1770791443820,-248.234056,0.00038356,60]
[405092988,1770791443829,-151.0,0.00038356,120]
[405092989,1770791443839,-202.851535,0.00038356,120]
[405092990,1770791443847,-151.0,0.00038356,120]
[405092991,1770791443857,-151.0,0.00038356,120]
[405092992,1770791443866,-151.0,0.00038356,120]
[405092993,1770791443875,-155.753132,0.00038356,120]
[405092994,1770791443885,-151.0,0.00038356,120]
[405092995,1770791443894,-151.0,0.00038356,120]
[405092996,1770791443904,-151.0,0.00038356,120]
[405092997,1770791443913,-151.0,0.00038356,120]
[405092998,1770791443923,-151.0,0.00038356,120]
[405092999,1770791443932,-151.0,0.00038356,120]
[405093000,1770791443942,-192.860749,0.00038356,120]
[405093001,1770791443952,-151.0,0.00038356,120]
[405093002,1770791443962,-152.16175,0.00038356,120]
[405093003,1770791443971,-186.891358,0.00038356,7]
[405093004,1770791443980,-186.891358,0.00038356,7]
[405093005,1770791443991,-186.891358,0.00038356,7]
[405093006,1770791444001,-186.891358,0.00038356,7]
[405093007,1770791444010,-186.891358,0.00038356,7]
[405093008,1770791444020,-151.0,0.00038356,120]
[405093009,1770791444030,-186.891358,0.00038356,7]
[405093010,1770791444041,-151.0,0.00038356,120]
[405093011,1770791444052,-186.891358,0.00038356,7]
[405093012,1770791444062,-161.052973,0.00038356,120]
[405093013,1770791444072,-186.891358,0.00038356,7]
[405093014,1770791444081,-186.891358,0.00038356,7]
[405093015,1770791444090,-186.891358,0.00038356,7]
[405093016,1770791444100,-186.891358,0.00038356,7]
[405093017,1770791444109,-186.891358,0.00038356,7]
[405093018,1770791444119,-186.891358,0.00038356,7]
[405093019,1770791444128,-186.891358,0.00038356,7]
[405093020,1770791444137,-186.891358,0.00038356,7]
[405093021,1770791444148,-186.891358,0.00038356,7]
[405093022,1770791444156,-186.891358,0.00038356,7]
[405093023,1770791444166,-186.891358,0.00038356,7]
[405093024,1770791444175,-186.891358,0.00038356,7]
[405093025,1770791444184,-186.891352,0.00038356,7]
[405093026,1770791444194,-151.0,0.00038356,120]
[405093027,1770791444203,-151.0,0.00038356,120]
[405093028,1770791444212,-151.0,0.00038356,120]
[405093029,1770791444221,-154.403408,0.00038356,120]
[405093030,1770791444231,-247.965789,0.00038356,120]
[405093031,1770791444241,-151.0,0.00038356,120]
[405093032,1770791444252,-163.644424,0.00038356,120]
[405093033,1770791444261,-151.0,0.00038356,120]
[405093034,1770791444270,-129.08473501,0.00038356,120]
[405093035,1770791444441,-21.91526499,0.00038356,120]
[405093036,1770791444450,-233.14985016,0.00038356,120]
[405093037,1770791444459,-151.0,0.00038356,120]
[405093038,1770791444468,-151.0,0.00038356,120]
[405093039,1770791444476,-180.65636,0.00038356,120]
[405093040,1770791444485,-156.024197,0.00038356,120]
[405093041,1770791444494,-151.0,0.00038356,120]
[405093042,1770791444505,-151.0,0.00038356,120]
[405093043,1770791444516,-159.528936,0.00038356,120]
[405093044,1770791444525,-151.0,0.00038356,120]
[405093045,1770791444534,-151.0,0.00038356,120]
[405093046,1770791444544,-158.195438,0.00038356,120]
[405093047,1770791444553,-151.0,0.00038356,120]
[405093048,1770791444562,-151.0,0.00038356,120]
[405093049,1770791444572,-151.0,0.00038356,120]
[405093050,1770791444581,-151.0,0.00038356,120]
[405093051,1770791444590,-151.0,0.00038356,120]
[405093052,1770791444599,-151.0,0.00038356,120]
[405093053,1770791444608,-275.98908,0.00038356,120]
[405093054,1770791444618,-151.0,0.00038356,2]
[405093055,1770791444627,-151.0,0.00038356,2]
[405093056,1770791444636,-151.0,0.00038356,2]
[405093057,1770791444644,-151.0,0.00038356,2]
[405093058,1770791444654,-208.163176,0.00038356,2]
[405093059,1770791444664,-159.343087,0.00038356,120]
[405093060,1770791444674,-1924.0,0.00038362,2]
[405093061,1770791444684,-168.0,0.00038386,7]
[405093062,1770791444693,-712.0,0.0003839,11]
[405093063,1770791444703,-712.0,0.0003839,11]
[405093064,1770791444713,-712.0,0.0003839,11]
[405093065,1770791444723,-401.0,0.00038394,11]
[405093066,1770791444733,-712.0,0.00038396,11]
[405093067,1770791444743,-2741.48,0.000384,14]
[405093068,1770791444757,-168.0,0.00038458,2]
[405093069,1770791444768,-151.0,0.000385,17]
[405093070,1770791444777,-133967.0835239,0.00038515,2]
[405093071,1770791444786,-168.0,0.0003855,2]
[405093072,1770791444796,-712.0,0.00038573,11]
[405093073,1770791444805,-431.36548199,0.00038624,3]
[405093074,1770791444828,-1390.18,0.0003863,120]
[405093075,1770791444838,-2752.25572133,0.0003863,30]
[405093076,1770791444848,-467.10074243,0.0003863,120]
[405093077,1770791444858,-536.72241032,0.0003863,120]
[405093078,1770791444872,-500.0,0.0003863,120]
[405093079,1770791444893,-500.0,0.0003863,120]
[405093080,1770791444907,-507.34264298,0.0003863,120]
[405093083,1770791444923,-599.68037899,0.0003863,120]
[405093085,1770791444940,-500.0,0.0003863,120]
[405093086,1770791444956,-500.0,0.0003863,14]
[405093087,1770791444973,-500.0,0.0003863,120]
[405093088,1770791444989,-567.22,0.0003863,120]
[405093089,1770791445004,-500.0,0.0003863,120]
[405093090,1770791445019,-798.27,0.0003863,120]
[405093091,1770791445035,-500.0,0.0003863,120]
[405093092,1770791445047,-183.25165916,0.0003863,120]
[405093093,1770791445062,-560.54,0.0003863,120]
[405093094,1770791445078,-500.0,0.0003863,120]
[405093095,1770791445094,-566.80002063,0.0003863,120]
[405093096,1770791445110,-500.0,0.0003863,120]
[405093097,1770791445126,-789.38,0.0003863,120]
[405093098,1770791445137,-501.92276814,0.0003863,120]
[405093099,1770791445150,-500.0,0.0003863,120]
[405093100,1770791445168,-500.0,0.0003863,120]
[405093101,1770791445180,-500.0,0.0003863,2]
[405093102,1770791445195,-500.0,0.0003863,120]
[405093103,1770791445209,-500.0,0.0003863,120]
[405093104,1770791445221,-528.52160766,0.0003863,120]
[405093105,1770791445236,-500.0,0.0003863,120]
[405093106,1770791445250,-500.0,0.0003863,7]
[405093107,1770791445263,-769.93,0.0003863,120]
[405093108,1770791445276,-500.0,0.0003863,120]
[405093109,1770791445289,-500.0,0.0003863,120]
[405093110,1770791445302,-500.0,0.0003863,120]
[405093111,1770791445315,-363.33360148,0.0003863,120]
[405093112,1770791445328,-500.0,0.0003863,120]
[405093113,1770791445341,-872.07,0.0003863,120]
[405093114,1770791445354,-268.21668248,0.0003863,120]
[405093115,1770791445366,-559.62,0.0003863,120]
[405093116,1770791445379,-618.96477174,0.0003863,120]
[405093118,1770791445391,-500.0,0.0003863,120]
[405093119,1770791445405,-500.0,0.0003863,120]
[405093120,1770791445418,-500.0,0.0003863,120]
[405093121,1770791445431,-500.0,0.0003863,120]
[405093122,1770791445451,-500.0,0.0003863,120]
[405093123,1770791445464,-500.0,0.0003863,120]
[405093124,1770791445475,-264.4667372,0.0003863,120]
[405093126,1770791445485,-478.50776246,0.0003863,120]
[405093127,1770791445495,-637.07961753,0.0003863,120]
[405093128,1770791445507,-500.0,0.0003863,120]
[405093129,1770791445518,-500.0,0.0003863,120]
[405093130,1770791445528,-275.2722335,0.0003863,120]
[405093131,1770791445539,-500.0,0.0003863,120]
[405093132,1770791445550,-500.0,0.0003863,120]
[405093133,1770791445560,-1002.57,0.0003863,120]
[405093134,1770791445570,-500.0,0.0003863,120]
[405093135,1770791445583,-500.0,0.0003863,8]
[405093136,1770791445712,-531.4540063,0.0003863,120]
[405093137,1770791445729,-500.0,0.0003863,120]
[405093138,1770791445739,-500.0,0.0003863,120]
[405093139,1770791445748,-500.0,0.0003863,120]
[405093140,1770791445759,-929.21,0.0003863,120]
[405093142,1770791445768,-519.91040681,0.0003863,120]
[405093144,1770791445777,-500.0,0.0003863,120]
[405093145,1770791445786,-500.0,0.0003863,120]
[405093146,1770791445795,-1000.0,0.0003863,2]
[405093147,1770791445805,-500.0,0.0003863,120]
[405093148,1770791445815,-626.42995661,0.0003863,120]
[405093149,1770791445823,-500.0,0.0003863,120]
[405093150,1770791445833,-500.0,0.0003863,120]
[405093151,1770791445842,-537.39279524,0.0003863,120]
[405093152,1770791445851,-387.43820346,0.0003863,120]
[405093153,1770791445860,-211.36060319,0.0003863,120]
[405093154,1770791445869,-500.0,0.0003863,120]
[405093155,1770791445878,-500.0,0.0003863,120]
[405093156,1770791445887,-500.0,0.0003863,120]
[405093157,1770791445898,-500.0,0.0003863,120]
[405093158,1770791445907,-907.67,0.0003863,120]
[405093159,1770791445916,-185.6833787,0.0003863,120]
[405093160,1770791445926,-500.0,0.0003863,120]
[405093161,1770791445935,-500.0,0.0003863,120]
[405093162,1770791445944,-500.0,0.0003863,120]
[405093163,1770791445953,-500.0,0.0003863,120]
[405093164,1770791445962,-362.44,0.0003863,120]
[405093165,1770791445971,-500.0,0.0003863,120]
[405093166,1770791445980,-500.0,0.0003863,120]
[405093167,1770791445990,-456.44682473,0.0003863,120]
[405093168,1770791445999,-500.0,0.0003863,120]
[405093169,1770791446008,-500.0,0.0003863,120]
[405093170,1770791446018,-588.46,0.0003863,120]
[405093171,1770791446028,-229.17072397,0.0003863,120]
[405093172,1770791446037,-500.0,0.0003863,120]
[405093173,1770791446047,-500.0,0.0003863,120]
[405093174,1770791446056,-500.0,0.0003863,120]
[405093175,1770791446065,-500.0,0.0003863,120]
[405093176,1770791446074,-500.0,0.0003863,120]
[405093177,1770791446083,-500.0,0.0003863,120]
[405093178,1770791446092,-160.47203791,0.0003863,120]
[405093179,1770791446102,-500.0,0.0003863,120]
[405093180,1770791446111,-15998.61,0.0003863,120]
[405093181,1770791446121,-609.34,0.0003863,120]
[405093182,1770791446130,-344.59227299,0.0003863,120]
[405093183,1770791446140,-584.98685552,0.0003863,2]
[405093184,1770791446150,-500.0,0.0003863,120]
[405093185,1770791446159,-500.0,0.0003863,120]
[405093186,1770791446169,-500.0,0.0003863,120]
[405093187,1770791446178,-500.0,0.0003863,120]
[405093188,1770791446189,-500.0,0.0003863,120]
[405093189,1770791446198,-500.0,0.0003863,120]
[405093190,1770791446208,-10423.80504112,0.0003863,120]
[405093191,1770791446310,-521.0,0.00038294,30]
[405093192,1770791446319,-529.5,0.00038294,30]
[405093193,1770791446329,-5027.81495888,0.0003863,120]
[405093194,1770791446338,-500.0,0.0003863,120]
[405093195,1770791446347,-500.0,0.0003863,120]
[405093196,1770791446357,-500.0,0.0003863,120]
[405093197,1770791446366,-5666.22,0.0003863,2]
[405093198,1770791446375,-228.79977739,0.0003863,120]
[405093199,1770791446385,-500.0,0.0003863,120]
[405093200,1770791446394,-500.0,0.0003863,120]
[405093201,1770791446404,-4737.65,0.0003863,21]
[405093202,1770791446414,-550.34342128,0.0003863,120]
[405093203,1770791446424,-500.0,0.0003863,120]
[405093204,1770791446434,-500.0,0.0003863,120]
[405093205,1770791446443,-2025.12,0.0003863,120]
[405093206,1770791446452,-1896.11,0.0003863,120]
[405093207,1770791446462,-500.0,0.0003863,120]
[405093208,1770791446471,-500.0,0.0003863,53]
[405093209,1770791446481,-500.0,0.0003863,120]
[405093210,1770791446491,-500.0,0.0003863,120]
[405093211,1770791446502,-500.0,0.0003863,120]
[405093212,1770791446514,-500.0,0.0003863,120]
[405093213,1770791446527,-304.98761805,0.0003863,120]
[405093214,1770791446537,-186.94776941,0.0003863,120]
[405093215,1770791446548,-572.34,0.0003863,120]
[405093216,1770791446558,-500.0,0.0003863,120]
[405093217,1770791446567,-500.0,0.0003863,120]
[405093218,1770791446579,-500.0,0.0003863,120]
[405093219,1770791446588,-500.0,0.0003863,120]
[405093220,1770791446597,-406.25956701,0.0003863,120]
[405093221,1770791446607,-57146.10676944,0.0003863,20]
[405093222,1770791446628,-269.247383,0.0003863,20]
[405093223,1770791446809,-258.20308388,0.00034789,7]
[405093224,1770791446823,-241.79691612,0.00034789,7]
[405093225,1770791446833,-500.0,0.00035552,2]
[405093226,1770791446842,-500.0,0.00035826,2]
[405093227,1770791446851,-500.0,0.000361,2]
[405093228,1770791446860,-151.0,0.00038356,10]
[405093229,1770791446868,-151.0,0.00038356,10]
[405093230,1770791446877,-259.833286,0.00038356,10]
[405093231,1770791446886,-268.62,0.00038505,10]
[405093232,1770791446895,-10571.58931987,0.0003863,20]
[405093233,1770791454112,5000.0,0.00030137,120]
[405093234,1770791492549,279.62503033,0.00032575,14]
[405093235,1770791496468,201.42051388,0.00025,2]
[405093236,1770791496488,5335.19593333,0.00025,2]
[405093237,1770791496508,5519.78668028,0.00025,2]
[405093238,1770791496532,4110.04222027,0.00025,2]
[405093239,1770791496552,4120.5668766,0.00025,2]
[405093240,1770791496572,570.83504231,0.00025,2]
[405093241,1770791496606,5593.12998662,0.00025,2]
[405093242,1770791496633,4602.62274671,0.00025,2]
[405093243,1770791564365,4148.42415807,0.00025,2]
[405093244,1770791579845,4091.74187789,0.00025,2]
[405093245,1770791612947,303.10001603,0.000189,2]
[405093246,1770791612975,303.10001603,0.00019278,2]
[405093247,1770791613003,303.10001603,0.00019467,2]
[405093248,1770791613032,303.10001603,0.00019089,2]
[405093249,1770791613064,324.69531848,0.00019656,2]
[405093250,1770791782387,380.45473758,0.00013273,2]
[405093255,1770792099082,3594.52103589,0.00025,2]
[405093256,1770792239360,5000.0,0.000245,2]
[405093257,1770792260859,5000.0,0.000245,2]
[405093258,1770792283237,5000.0,0.000245,2]
[405093259,1770792291265,3650.92710819,0.000245,2]
[405093260,1770792299289,5000.0,0.000245,2]
[405093261,1770792307666,1116.39048714,0.000245,2]
[405093262,1770792337696,-809.62267868,0.00024255,2]
[405093263,1770792431115,-4190.37732132,0.00024255,2]
[405093264,1770792431136,-150.0,0.00024328,2]
[405093265,1770792431156,-3039.81173752,0.000245,2]
[405093267,1770792505584,5000.0,0.00024,2]
[405093268,1770792527430,5000.0,0.00024,2]
[405093269,1770792546090,-2129.28928985,0.00024255,2]
[405093270,1770792548146,-2870.71071015,0.00024255,2]
[405093271,1770792548167,-791.28611062,0.00024519,2]
[405093272,1770792548189,-2270.56203616,0.00024619,2]
[405093273,1770792548209,-704.32957,0.00026018,2]
[405093274,1770792548329,-300.0,0.00026326,2]
[405093275,1770792548352,-177.0,0.00026328,2]
[405093276,1770792548374,-300.0,0.00026574,2]
[405093277,1770792548395,-1200.0,0.00026848,2]
[405093278,1770792548416,-4771.35447426,0.00027846,2]
[405093279,1770792548436,-1514.94091733,0.0002803,2]
[405093280,1770792548458,-223.85,0.00028179,10]
[405093281,1770792548480,-500.0,0.00028189,2]
[405093282,1770792548500,-500.0,0.00028189,2]
[405093283,1770792548521,-500.0,0.00028189,2]
[405093284,1770792548542,-500.0,0.00028189,2]
[405093285,1770792548563,-500.0,0.00028189,2]
[405093286,1770792548585,-500.0,0.00028189,2]
[405093287,1770792548607,-500.0,0.00028189,2]
[405093288,1770792548630,-500.0,0.00028189,2]
[405093289,1770792548653,-500.0,0.00028189,2]
[405093290,1770792548676,-500.0,0.00028189,2]
[405093291,1770792548697,-447.80368275,0.00028189,2]
[405093292,1770792548717,-331.34934068,0.00028189,2]
[405093293,1770792548741,-500.0,0.00028189,2]
[405093294,1770792548763,-500.0,0.00028189,2]
[405093295,1770792548786,-500.0,0.00028189,2]
[405093296,1770792548807,-500.0,0.00028189,2]
[405093297,1770792548830,-500.0,0.00028189,2]
[405093298,1770792548853,-500.0,0.00028189,2]
[405093299,1770792548877,-500.0,0.00028189,2]
[405093300,1770792548900,-500.0,0.00028189,2]
[405093301,1770792548926,-500.0,0.00028189,2]
[405093302,1770792548948,-500.0,0.00028189,2]
[405093303,1770792548971,-500.0,0.00028189,2]
[405093304,1770792548995,-500.0,0.00028189,2]
[405093305,1770792549019,-500.0,0.00028189,2]
[405093306,1770792549043,-500.0,0.00028189,2]
[405093307,1770792549065,-500.0,0.00028189,2]
[405093308,1770792549088,-500.0,0.00028189,2]
[405093309,1770792549110,-500.0,0.00028189,2]
[405093310,1770792549133,-500.0,0.00028189,2]
[405093311,1770792549157,-500.0,0.00028189,2]
[405093312,1770792549179,-500.0,0.00028189,2]
[405093313,1770792549202,-500.0,0.00028189,2]
[405093314,1770792549223,-500.0,0.00028189,2]
[405093315,1770792549245,-500.0,0.00028189,2]
[405093316,1770792549267,-500.0,0.00028189,2]
[405093317,1770792549288,-500.0,0.00028189,2]
[405093318,1770792549310,-500.0,0.00028189,2]
[405093319,1770792549332,-500.0,0.00028189,2]
[405093320,1770792549355,-500.0,0.00028189,2]
[405093321,1770792549378,-500.0,0.00028189,2]
[405093322,1770792549400,-500.0,0.00028189,2]
[405093323,1770792549423,-500.0,0.00028189,2]
[405093324,1770792549447,-500.0,0.00028189,2]
[405093325,1770792549471,-500.0,0.00028189,2]
[405093326,1770792549494,-500.0,0.00028189,2]
[405093327,1770792549520,-500.0,0.00028189,2]
[405093328,1770792549543,-500.0,0.00028189,2]
[405093329,1770792549566,-121.67385421,0.00028189,2]
[405093330,1770792549644,5000.0,0.00024,2]
[405093331,1770792550107,-378.32614579,0.00028189,2]
[405093332,1770792550134,-500.0,0.00028189,2]
[405093333,1770792550157,-500.0,0.00028189,2]
[405093334,1770792550180,-500.0,0.00028189,2]
[405093335,1770792550203,-500.0,0.00028189,2]
[405093336,1770792550226,-500.0,0.00028189,2]
[405093337,1770792550249,-500.0,0.00028189,2]
[405093338,1770792550271,-500.0,0.00028189,2]
[405093339,1770792550294,-500.0,0.00028189,2]
[405093340,1770792550317,-500.0,0.00028189,2]
[405093341,1770792550340,-500.0,0.00028189,2]
[405093342,1770792550363,-300.0,0.00028189,2]
[405093343,1770792550388,-500.0,0.00028189,2]
[405093344,1770792550411,-500.0,0.00028189,2]
[405093345,1770792550436,-500.0,0.00028189,2]
[405093346,1770792550461,-500.0,0.00028189,2]
[405093347,1770792550483,-500.0,0.00028189,2]
[405093348,1770792550507,-650.0,0.00028189,2]
[405093349,1770792550530,-500.0,0.00028189,2]
[405093350,1770792550555,-500.0,0.00028189,2]
[405093351,1770792550578,-166.87595236,0.00028189,2]
[405093352,1770792550600,-500.0,0.00028189,2]
[405093353,1770792550622,-500.0,0.00028189,2]
[405093354,1770792550646,-500.0,0.00028189,2]
[405093355,1770792550731,-619.70661593,0.00028189,2]
[405093356,1770792550768,-500.0,0.00028189,2]
[405093357,1770792550790,-500.0,0.00028189,2]
[405093358,1770792550813,-500.0,0.00028189,2]
[405093359,1770792550837,-500.0,0.00028189,2]
[405093360,1770792550860,-500.0,0.00028189,2]
[405093361,1770792550883,-500.0,0.00028189,2]
[405093362,1770792550904,-500.0,0.00028189,2]
[405093363,1770792550928,-500.0,0.00028189,2]
[405093364,1770792550951,-650.0,0.00028189,2]
[405093365,1770792550973,-500.0,0.00028189,2]
[405093366,1770792550997,-500.0,0.00028189,2]
[405093367,1770792551021,-500.0,0.00028189,2]
[405093368,1770792551043,-500.0,0.00028189,2]
[405093369,1770792551065,-500.0,0.00028189,2]
[405093370,1770792551087,-500.0,0.00028189,2]
[405093371,1770792551108,-500.0,0.00028189,2]
[405093372,1770792551132,-500.0,0.00028189,2]
[405093373,1770792551154,-500.0,0.00028189,2]
[405093374,1770792551178,-500.0,0.00028189,2]
[405093375,1770792551201,-500.0,0.00028189,2]
[405093376,1770792551222,-500.0,0.00028189,2]
[405093377,1770792551244,-500.0,0.00028189,2]
[405093378,1770792551266,-500.0,0.00028189,2]
[405093379,1770792551289,-500.0,0.00028189,2]
[405093380,1770792551311,-500.0,0.00028189,2]
[405093381,1770792551334,-500.0,0.00028189,2]
[405093382,1770792551355,-500.0,0.00028189,2]
[405093383,1770792551379,-500.0,0.00028189,2]
[405093384,1770792551401,-500.0,0.00028189,2]
[405093385,1770792551422,-500.0,0.00028189,2]
[405093386,1770792551445,-500.0,0.00028189,2]
[405093387,1770792551468,-500.0,0.00028189,2]
[405093388,1770792551490,-500.0,0.00028189,2]
[405093389,1770792551511,-500.0,0.00028189,2]
[405093390,1770792551534,-500.0,0.00028189,2]
[405093391,1770792551558,-500.0,0.00028189,2]
[405093392,1770792551580,-500.0,0.00028189,2]
[405093393,1770792551603,-500.0,0.00028189,2]
[405093394,1770792551626,-500.0,0.00028189,2]
[405093395,1770792551651,-209.02806513,0.00028189,2]
[405093396,1770792551675,-500.0,0.00028189,2]
[405093397,1770792551698,-500.0,0.00028189,2]
[405093398,1770792551721,-500.0,0.00028189,2]
[405093399,1770792551744,-500.0,0.00028189,2]
[405093400,1770792551768,-500.0,0.00028189,2]